[Event "Begum Laila Alam 12th Women 2022"]
[Site "Dhaka"]
[Date "2022.05.09"]
[Round "5.5"]
[White "Wadifa, Ahmed"]
[Black "Neelava, Choudhury"]
[Result "1-0"]
[ECO "B48"]
[WhiteElo "1791"]
[BlackElo "1515"]
[Annotator "NA RC COMBH"]
[PlyCount "24"]
[EventDate "2022.05.05"]
[EventType "swiss"]
[EventCountry "BAN"]
[SourceTitle "playchess.com"]
[Source "ChessBase"]
[SourceQuality "1"]
[TimeControl "5400+30"]

1. e4 {[%emt 0:00:03]} c5 {[%emt 0:00:07]} 2. Nf3 {[%emt 0:00:12]} e6 {[%emt 0:00:44]} 3. d4 {[%emt 0:00:08]} cxd4 {[%emt 0:00:06]} 4. Nxd4 {[%emt 0:00:05]} Nc6 {[%emt 0:00:16]} 5. Nc3 {[%emt 0:01:02]} Qc7 {[%emt 0:00:37]} 6. Be3 {[%emt 0:01:46]} a6 {[%emt 0:01:40]} 7. Bd3 {[%emt 0:00:37]} Bc5 {[%emt 0:01:40]} 8. Nxe6 {[%emt 0:01:02]} dxe6 {[%emt 0:03:19]} 9. Bxc5 {[%emt 0:00:08]} Ne5 {[%emt 0:03:14]} 10. Be3 {[%emt 0:02:24]} Nxd3+ {[%emt 0:01:24]} 11. cxd3 {[%emt 0:00:09]} Nf6 {[%emt 0:02:39]} 12. h3 {[%emt 0:02:55]} Qd6 {[%emt 0:07:20]} 1-0

[Event "Begum Laila Alam 12th Women 2022"]
[Site "Dhaka"]
[Date "2022.05.09"]
[Round "5.6"]
[White "Sultana, Zakia"]
[Black "Essaba, Masnun"]
[Result "1-0"]
[ECO "A41"]
[WhiteElo "1777"]
[BlackElo "1316"]
[Annotator "NA RC COMBH"]
[PlyCount "87"]
[EventDate "2022.05.05"]
[EventType "swiss"]
[EventCountry "BAN"]
[SourceTitle "playchess.com"]
[Source "ChessBase"]
[SourceQuality "1"]
[TimeControl "5400+30"]

1. d4 {[%emt 0:00:04]} g6 {[%emt 0:00:47]} 2. Nf3 {[%emt 0:00:14]} d6 {[%emt 0:00:17]} 3. Bf4 {[%emt 0:00:22]} Bg7 {[%emt 0:00:10]} 4. e3 {[%emt 0:00:14]} a6 {[%emt 0:00:51]} 5. Be2 {[%emt 0:00:23]} e6 {[%emt 0:00:15]} 6. Nbd2 {[%emt 0:00:29]} Nd7 {[%emt 0:00:41]} 7. Bg3 {[%emt 0:00:35]} h6 {[%emt 0:00:31]} 8. h3 {[%emt 0:01:20]} b6 {[%emt 0:00:28]} 9. c3 {[%emt 0:00:41]} Bb7 {[%emt 0:00:19]} 10. Qc2 {[%emt 0:00:55]} Ne7 {[%emt 0:00:31]} 11. e4 {[%emt 0:01:43]} O-O {[%emt 0:02:17]} 12. O-O {[%emt 0:00:31]} Qe8 {[%emt 0:14:25]} 13. Bd3 {[%emt 0:03:05]} Rc8 {[%emt 0:03:35]} 14. Qb3 {[%emt 0:01:35]} d5 {[%emt 0:01:05]} 15. Rfe1 {[%emt 0:02:06]} dxe4 {[%emt 0:01:56]} 16. Bxe4 {[%emt 0:01:16]} Bxe4 {[%emt 0:00:27]} 17. Nxe4 {[%emt 0:00:28]} Nf5 {[%emt 0:00:33]} 18. Bh2 {[%emt 0:00:26]} Qd8 {[%emt 0:02:16]} 19. Rad1 {[%emt 0:01:04]} Nf6 {[%emt 0:04:52]} 20. Nxf6+ {[%emt 0:02:58]} Bxf6 {[%emt 0:02:37]} 21. d5 {[%emt 0:01:19]} exd5 {[%emt 0:04:33]} 22. Rxd5 {[%emt 0:00:36]} Nd6 {[%emt 0:00:15]} 23. Qa3 {[%emt 0:05:47]} Nc4 {[%emt 0:02:01]} 24. Rxd8 {[%emt 0:00:24]} Nxa3 {[%emt 0:00:19]} 25. Rxf8+ {[%emt 0:00:18]} Kxf8 {[%emt 0:00:26]} 26. bxa3 {[%emt 0:00:07]} Bxc3 {[%emt 0:00:27]} 27. Rc1 {[%emt 0:00:34]} Bb2 {[%emt 0:04:34]} 28. Bd6+ {[%emt 0:02:53]} Kg8 {[%emt 0:00:53]} 29. Rxc7 {[%emt 0:00:32]} Rxc7 {[%emt 0:02:03]} 30. Bxc7 {[%emt 0:00:12]} b5 {[%emt 0:00:20]} 31. Bd6 {[%emt 0:00:15]} f6 {[%emt 0:01:34]} 32. Kf1 {[%emt 0:00:22]} Kf7 {[%emt 0:00:11]} 33. Ke2 {[%emt 0:00:32]} Ke6 {[%emt 0:00:21]} 34. Bf8 {[%emt 0:00:29]} h5 {[%emt 0:00:27]} 35. Kd3 {[%emt 0:00:46]} Kd5 {[%emt 0:00:32]} 36. Nh4 {[%emt 0:00:59]} g5 {[%emt 0:00:57]} 37. Nf5 {[%emt 1:12:26]} Ke6 {[%emt 0:50:14]} 38. g4 {[%emt 0:00:00]} hxg4 {[%emt 0:00:00]} 39. hxg4 {[%emt 0:00:00]} Be5 {[%emt 0:00:00]} 40. Bb4 {[%emt 0:00:00]} Kd5 {[%emt 0:00:00]} 41. Ne3+ {[%emt 0:00:00]} Kc6 {[%emt 0:00:00]} 42. Ke4 {[%emt 0:00:00]} Bh2 {[%emt 0:00:00]} 43. f3 {[%emt 0:00:00]} Be5 {[%emt 0:00:00]} 44. Nd5 {[%emt 0:03:30]} 1-0

[Event "Begum Laila Alam 12th Women 2022"]
[Site "Dhaka"]
[Date "2022.05.10"]
[Round "6.1"]
[White "Sultana, Sharmin Shirin"]
[Black "Wadifa, Ahmed"]
[Result "1-0"]
[ECO "A80"]
[WhiteElo "1992"]
[BlackElo "1791"]
[Annotator "TA"]
[PlyCount "75"]
[EventDate "2022.05.05"]
[EventType "swiss"]
[EventCountry "BAN"]
[SourceTitle "playchess.com"]
[Source "ChessBase"]
[SourceQuality "1"]
[TimeControl "5400+30"]

{[%evp 9,75,17,19,0,12,0,-4,-25,-1,-1,-2,-23,9,-21,-22,-16,-22,-28,-12,-38,26,20,51,37,107,59,93,108,76,74,140,18,301,308,294,282,312,264,247,252,320,8,553,548,569,528,571,553,599,587,865,855,847,809,29983,1976,1940,1858,1983,1840,1796,1658,6000,2852,29986,29987,29985,2670]} 1. d4 {[%emt 0:00:14]} f5 {[%emt 0:00:10]} 2. Nc3 {[%emt 0:09:52]} Nf6 {[%emt 0:00:32]} 3. Nf3 {[%emt 0:01:20]} g6 {[%emt 0:01:14]} 4. Bf4 {[%emt 0:01:30]} Bg7 {[%emt 0:00:32]} 5. Qd2 {[%emt 0:00:35]} Ne4 {[%emt 0:13:19]} 6. Nxe4 {[%emt 1:19:59] A80: Dutch Defence: Unusual White second moves.} fxe4 {[%emt 0:00:07]} 7. Ng5 {[%emt 0:00:00]} d5 {[%emt 0:01:14] [#]} 8. h4 $146 {[%emt 0:00:00] The position is equal.} ({Predecessor:} 8. e3 Nc6 9. O-O-O h6 10. Nh3 Bg4 11. Be2 Bxe2 12. Qxe2 Qd7 13. Bg3 e5 14. dxe5 Nxe5 {0-1 (40) Beavan,R (1919)-Koch,H (2340) ICCF email 2011}) 8... h6 {[%emt 0:06:49]} (8... c5 $5 9. Bxb8 Rxb8 $11) 9. Nh3 {[%emt 0:00:00]} Nc6 {[%emt 0:00:50]} 10. c3 {[%emt 0:00:00]} Bf5 {[%emt 0:01:11]} 11. e3 {[%emt 0:00:00]} Qd7 {[%emt 0:02:36]} 12. Bb5 {[%emt 0:00:00]} a6 {[%emt 0:09:42]} 13. Ba4 {[%emt 0:00:00]} O-O-O {[%emt 0:14:48]} 14. b4 {[%emt 0:00:00]} b5 {[%emt 0:09:09]} (14... Bg4 $15) 15. Bb3 {[%emt 0:00:00]} g5 {[%emt 0:04:13] Threatens to win with ...Bxh3.} 16. Bg3 {[%emt 0:00:00]} (16. hxg5 e5 17. gxh6 (17. dxe5 Bxh3 18. Rxh3 hxg5 $11) 17... exf4 18. hxg7 Qxg7 $11) 16... Bf6 {[%emt 0:08:36]} ({Better is} 16... e5 $14) 17. h5 {[%emt 0:00:00]} (17. a4 $16) 17... Kb7 {[%emt 0:02:24]} 18. Ng1 {[%emt 0:00:00]} e5 {[%emt 0:01:44]} 19. Ne2 {[%emt 0:00:00]} Rhe8 {[%emt 0:01:47]} (19... Ra8 $142) 20. Nc1 {[%emt 0:00:00]} (20. O-O $1 $16) 20... a5 $2 {[%emt 0:05:01][%mdl 8192]} (20... exd4 $1 $11 21. cxd4 Bg4) 21. a4 $18 {[%emt 0:00:00]} exd4 {[%emt 0:01:22]} 22. cxd4 {[%emt 0:00:00]} (22. axb5 Nxb4 23. cxd4 (23. cxb4 dxe3 24. fxe3 Bxa1 $17) 23... Rc8 $16) 22... Nxb4 {[%emt 0:00:32]} 23. axb5 {[%emt 0:00:00][%mdl 64] Remove Defender} Qxb5 {[%emt 0:00:42]} ({Weaker is} 23... Ra8 24. O-O $16 (24. Qc3 Be7 $14)) 24. Ba4 {[%emt 0:03:40][%mdl 64] Skewer} Qc4 {[%emt 0:00:03][%cal Of6e7] [#]} 25. Ra3 $2 {[%emt 0:00:38]} (25. Nb3 $1 $18 {[%cal Rb3a5]} Ra8 26. Nc5+ Kb6 27. Rc1) 25... Re7 $2 {[%emt 0:02:06][%mdl 8192]} (25... c6 $1 $11 {and Black has nothing to worry.}) 26. Rc3 {[%emt 0:00:53]} Qa6 {[%emt 0:00:07]} 27. Nb3 {[%emt 0:00:25] And now Nc5+ would win.} Kb8 {[%emt 0:03:37]} 28. Nc5 {[%emt 0:00:06]} Qb6 {[%emt 0:00:04]} 29. O-O {[%emt 0:00:15]} Kc8 {[%emt 0:04:25]} 30. Rb1 {[%emt 0:01:44]} Bd7 {[%emt 0:03:43] [#]} 31. Bxc7 $1 {[%emt 0:02:48][%mdl 512]} Qa7 {[%emt 0:02:28]} (31... Qxc7 32. Bxd7+) 32. Bxd8 {[%emt 0:00:18]} (32. Nxd7 $142 Rdxd7 33. Bxa5+ Kb8 34. Bxb4 Qb7 35. Rc6 Rh7 36. Rxf6 Rhf7 37. Rxf7) 32... Kxd8 {[%emt 0:00:04]} 33. Nxd7 {[%emt 0:00:39]} Rxd7 {[%emt 0:00:08]} 34. Bxd7 {[%emt 0:00:09]} Qxd7 {[%emt 0:00:05]} 35. Rc5 {[%emt 0:00:34]} Qa4 {[%emt 0:01:28]} 36. Qc1 {[%emt 0:00:39] Threatening mate with Rc8+.} Ke7 {[%emt 0:01:02]} 37. Rc7+ {[%emt 0:00:18]} Ke6 {[%emt 0:00:03]} 38. Ra7 {[%emt 0:01:27] Weighted Error Value: White=0.36/Black=1.03} (38. Qc5 $142 Qe8 39. Qxa5 Kf5 40. Rxb4 Qd8 {[#]} 41. Rb6 $1 Kg4 42. Rf7 Be5 43. dxe5) 1-0

[Event "Begum Laila Alam 12th Women 2022"]
[Site "Dhaka"]
[Date "2022.05.10"]
[Round "6.2"]
[White "Hamid, Rani"]
[Black "Sultana, Zakia"]
[Result "1-0"]
[ECO "C00"]
[WhiteElo "1783"]
[BlackElo "1777"]
[Annotator "NA RC COMBH"]
[PlyCount "127"]
[EventDate "2022.05.05"]
[EventType "swiss"]
[EventCountry "BAN"]
[SourceTitle "playchess.com"]
[Source "ChessBase"]
[SourceQuality "1"]
[TimeControl "5400+30"]

1. e4 {[%emt 0:00:02]} e6 {[%emt 0:00:09]} 2. d3 {[%emt 0:00:06]} d5 {[%emt 0:00:11]} 3. Qe2 {[%emt 0:00:02]} c5 {[%emt 0:01:08]} 4. Nf3 {[%emt 0:00:29]} Nc6 {[%emt 0:00:23]} 5. g3 {[%emt 0:00:44]} Nf6 {[%emt 0:01:41]} 6. Bg2 {[%emt 0:00:20]} Be7 {[%emt 0:00:57]} 7. O-O {[%emt 0:01:36]} d4 {[%emt 0:01:39]} 8. e5 {[%emt 0:01:28]} Nd5 {[%emt 0:01:42]} 9. Na3 {[%emt 0:03:20]} O-O {[%emt 0:00:52]} 10. h4 {[%emt 0:00:46]} f6 {[%emt 0:02:39]} 11. exf6 {[%emt 0:00:42]} Nxf6 {[%emt 0:01:54]} 12. Nc4 {[%emt 0:00:36]} Nd5 {[%emt 0:04:35]} 13. Nce5 {[%emt 0:00:57]} Nxe5 {[%emt 0:01:34]} 14. Nxe5 {[%emt 1:26:22]} Bf6 {[%emt 1:18:06]} 15. Nf3 {[%emt 0:00:00]} Rb8 {[%emt 0:00:00]} 16. Bd2 {[%emt 0:00:00]} Bd7 {[%emt 0:00:00]} 17. Rae1 {[%emt 0:00:00]} b5 {[%emt 0:00:00]} 18. Bg5 {[%emt 0:00:00]} h6 {[%emt 0:00:00]} 19. Bxf6 {[%emt 0:00:00]} Rxf6 {[%emt 0:00:00]} 20. Ne5 {[%emt 0:00:00]} Be8 {[%emt 0:00:00]} 21. Ng4 {[%emt 0:00:00]} Rf8 {[%emt 0:00:00]} 22. Qxe6+ {[%emt 0:00:00]} Bf7 {[%emt 0:00:00]} 23. Qc6 {[%emt 0:00:00]} Nb4 {[%emt 0:00:00]} 24. Qxc5 {[%emt 0:00:00]} Nxa2 {[%emt 0:00:00]} 25. Ne5 {[%emt 0:00:00]} Rc8 {[%emt 0:00:00]} 26. Qxb5 {[%emt 0:00:00]} Rb8 {[%emt 0:00:00]} 27. Qc5 {[%emt 0:00:00]} Rc8 {[%emt 0:00:00]} 28. Qxa7 {[%emt 0:00:00]} Nb4 {[%emt 0:00:00]} 29. Re4 {[%emt 0:00:00]} Nxc2 {[%emt 0:00:00]} 30. Rf4 {[%emt 0:00:00]} Rc7 {[%emt 0:00:00]} 31. Qb6 {[%emt 0:00:00]} Rc8 {[%emt 0:00:00]} 32. Qxd8 {[%emt 0:00:00]} Rcxd8 {[%emt 0:00:00]} 33. Nc6 {[%emt 0:00:00]} Rd7 {[%emt 0:00:00]} 34. Rc1 {[%emt 0:00:00]} Bb3 {[%emt 0:00:00]} 35. Re4 {[%emt 0:00:00]} Ba4 {[%emt 0:00:00]} 36. Re2 {[%emt 0:00:00]} Rd6 {[%emt 0:00:00]} 37. Rexc2 {[%emt 0:00:00]} Bxc2 {[%emt 0:00:00]} 38. Rxc2 {[%emt 0:00:00]} Re8 {[%emt 0:00:00]} 39. b4 {[%emt 0:00:00]} Re1+ {[%emt 0:00:00]} 40. Kh2 {[%emt 0:00:00]} Rb1 {[%emt 0:00:00]} 41. Be4 {[%emt 0:00:00]} Kf7 {[%emt 0:00:00]} 42. Rc4 {[%emt 0:00:00]} g5 {[%emt 0:00:00]} 43. h5 {[%emt 0:00:00]} Rb2 {[%emt 0:00:00]} 44. Kg2 {[%emt 0:00:00]} Rf6 {[%emt 0:00:00]} 45. Ne5+ {[%emt 0:00:00]} Ke7 {[%emt 0:00:00]} 46. Ng4 {[%emt 0:00:00]} Rd6 {[%emt 0:00:00]} 47. Bg6 {[%emt 0:00:00]} Rb6 {[%emt 0:00:00]} 48. Nxh6 {[%emt 0:00:00]} R2xb4 {[%emt 0:00:00]} 49. Nf5+ {[%emt 0:00:00]} Kf6 {[%emt 0:00:00]} 50. Rxd4 {[%emt 0:00:00]} Rxd4 {[%emt 0:00:00]} 51. Nxd4 {[%emt 0:00:00]} Rd6 {[%emt 0:00:00]} 52. Nf3 {[%emt 0:00:00]} g4 {[%emt 0:00:00]} 53. Nd2 {[%emt 0:00:00]} Rd4 {[%emt 0:00:00]} 54. Kf1 {[%emt 0:00:00]} Rd8 {[%emt 0:00:00]} 55. Ke2 {[%emt 0:00:00]} Ke5 {[%emt 0:00:00]} 56. Ke3 {[%emt 0:00:00]} Rf8 {[%emt 0:00:00]} 57. Be4 {[%emt 0:00:00]} Rh8 {[%emt 0:00:00]} 58. Nc4+ {[%emt 0:00:00]} Ke6 {[%emt 0:00:00]} 59. Bg6 {[%emt 0:00:00]} Rf8 {[%emt 0:00:00]} 60. Nd2 {[%emt 0:00:00]} Ke5 {[%emt 0:00:00]} 61. d4+ {[%emt 0:00:00]} Kd5 {[%emt 0:00:00]} 62. Be4+ {[%emt 0:00:00]} Kd6 {[%emt 0:00:00]} 63. h6 {[%emt 0:00:00]} Ke6 {[%emt 0:00:00]} 64. h7 {[%emt 0:25:00]} 1-0

[Event "Begum Laila Alam 12th Women 2022"]
[Site "Dhaka"]
[Date "2022.05.10"]
[Round "6.3"]
[White "Khan, Nazrana"]
[Black "Noshin, Anjum"]
[Result "0-1"]
[ECO "D24"]
[WhiteElo "1829"]
[BlackElo "2065"]
[Annotator "TA"]
[PlyCount "126"]
[EventDate "2022.05.05"]
[EventType "swiss"]
[EventCountry "BAN"]
[SourceTitle "playchess.com"]
[Source "ChessBase"]
[SourceQuality "1"]
[TimeControl "5400+30"]

{[%evp 11,126,-61,-42,-58,-28,-19,-8,0,0,-6,8,0,0,0,8,0,0,-10,0,-31,-18,-52,0,-64,-70,-65,-71,-118,-54,-231,-102,-211,-183,-227,-225,-297,-259,-318,-312,-297,-250,-275,-241,-466,-466,-443,-427,-472,-585,-550,-581,-578,-585,-582,-573,-700,-625,-591,-583,-573,-1252,-1235,-565,-1251,-552,-1262,-1199,-550,-550,-1261,-607,-1085,-1085,-749,-1012,-581,-249,-6327,0,0,0,0,0,0,0,0,0,0,0,0,0,-158,0,-62,0,-177,-154,-530,0,-521,-537,-535,-518,-510,-480,-650,-637,-587,-574,-514,-504,-729,-702,-29982,-29983,-29982,-29983]} 1. d4 {[%emt 0:00:03]} d5 {[%emt 0:00:06]} 2. c4 {[%emt 0:00:05]} dxc4 {[%emt 0:00:04]} 3. Nf3 {[%emt 0:00:22]} Nf6 {[%emt 0:00:13]} 4. Nc3 {[%emt 0:00:11]} a6 {[%emt 0:01:24]} 5. a4 {[%emt 0:00:55]} Nc6 {[%emt 0:00:40]} 6. e3 {[%emt 0:01:36]} Na5 $1 {[%emt 0:12:14][%cal Oc7c5]} 7. Ne5 {[%emt 0:06:41] D24: Queen's Gambit Accepted: 3 Nf3 Nf6 4 Nc3.} e6 {[%emt 0:01:21]} (7... Be6 {with more complications.} 8. e4 Nb3 9. d5 Ng4) 8. Nxc4 {[%emt 0:01:53]} Nxc4 {[%emt 0:00:14]} 9. Bxc4 {[%emt 0:00:15] The position is equal.} c5 {[%emt 0:00:07] [#]} 10. d5 $146 {[%emt 0:02:34]} ({Predecessor:} 10. O-O cxd4 11. exd4 Be7 12. d5 exd5 13. Nxd5 Nxd5 14. Bxd5 O-O 15. Qf3 Bg4 16. Bxf7+ Rxf7 17. Qxg4 Bc5 18. Be3 Qb6 19. a5 {1-0 (36) Seo,J (2453)-Fataliyeva,U (2301) Chess.com INT 2021}) 10... exd5 {[%emt 0:01:52]} 11. Nxd5 {[%emt 0:00:37]} Be6 {[%emt 0:04:54][%cal Re6d5]} 12. Nxf6+ {[%emt 0:01:32]} Qxf6 {[%emt 0:00:06]} 13. Qb3 {[%emt 0:02:21]} Bxc4 {[%emt 0:06:32]} 14. Qxc4 {[%emt 0:00:07]} Be7 {[%emt 0:00:49]} 15. O-O {[%emt 0:01:07]} O-O {[%emt 0:00:05][%cal Ob7b5]} 16. Qc2 {[%emt 0:02:12]} Qc6 {[%emt 0:16:43]} (16... b5 $15) 17. e4 {[%emt 0:04:02]} (17. a5 $11) 17... b5 $15 {[%emt 0:07:43][%cal Bb7b5,Bb5b4][%mdl 32]} 18. Be3 {[%emt 0:01:33]} c4 {[%emt 0:00:44]} 19. b3 {[%emt 0:05:48]} ({White has to play} 19. Rac1) 19... Rfc8 {[%emt 0:03:36]} (19... c3 $17 20. Rad1 Rfd8) 20. Rac1 $2 {[%emt 0:02:19]} (20. bxc4 $15 Qxc4 21. Qxc4 bxc4 22. Rfc1) 20... c3 {[%emt 0:06:13]} (20... Qe6 $1 $19 {is more deadly.} 21. Qe2 Qxe4 22. axb5 axb5 23. bxc4 bxc4) 21. f4 {[%emt 0:02:41]} (21. Rfd1 $17) 21... b4 {[%emt 0:00:28]} 22. Rfd1 {[%emt 0:02:37]} Bc5 {[%emt 0:01:11]} 23. Kf2 {[%emt 0:02:42]} Rd8 {[%emt 0:05:04] Against Qd3} 24. Bxc5 {[%emt 0:05:04]} Qxc5+ {[%emt 0:00:06]} 25. Kf3 {[%emt 0:01:29]} g6 {[%emt 0:05:31]} 26. g4 {[%emt 0:03:13]} Qa5 {[%emt 0:06:06]} 27. g5 $2 {[%emt 0:05:10]} (27. e5) 27... Rxd1 $19 {[%emt 0:00:23]} 28. Rxd1 {[%emt 0:00:30][%mdl 4096] Endgame KQR-KQR} Rd8 {[%emt 0:00:06] Inhibits Qd3.} 29. h4 {[%emt 0:06:57]} Rxd1 {[%emt 0:00:44]} 30. Qxd1 {[%emt 0:00:02] KQ-KQ} Qc7 {[%emt 0:00:07] Prevents Qd6.} 31. Qc2 {[%emt 0:01:25]} Qd7 {[%emt 0:04:01] ...Qh3+ is the strong threat.} 32. f5 {[%emt 0:00:26]} Kf8 {[%emt 0:00:41]} 33. Ke3 {[%emt 0:02:15]} Qd6 {[%emt 0:03:54] Prevents Qh2.} 34. Kf3 {[%emt 0:01:10] Prevents Qg3+.} Ke7 {[%emt 0:03:25]} 35. Qe2 {[%emt 0:01:33]} Qc6 {[%emt 0:00:42]} 36. f6+ {[%emt 0:02:10]} Ke6 {[%emt 0:03:20]} (36... Kd7 $142 37. Qc2 Kc7) 37. Qc2 {[%emt 0:00:57]} Kd7 {[%emt 0:02:54]} (37... a5 $142 38. Ke2 Qc5) 38. Ke3 {[%emt 0:03:16]} Qc5+ {[%emt 0:01:09]} 39. Kf3 {[%emt 0:02:00]} Ke8 {[%emt 0:00:04] And now ...a5 would win.} 40. Kf4 {[%emt 0:05:49]} Qd6+ {[%emt 0:00:05]} (40... a5 $142 41. Kf3 Qc8) 41. Kf3 {[%emt 0:00:35]} Qd7 {[%emt 0:00:03] Hoping for ...Qh3+.} 42. Ke3 {[%emt 0:06:59]} Qh3+ {[%emt 0:00:30]} 43. Kd4 {[%emt 0:01:46]} Qxh4 {[%emt 0:01:28]} (43... a5 $142 44. Qe2 Qd7+ 45. Ke3 Qh3+ 46. Kd4 Qc8) 44. Qd3 $2 {[%emt 0:00:16]} (44. Qe2 Kd8 45. Kc5 Qxg5+ 46. e5) 44... Qxg5 $2 {[%emt 0:00:14]} (44... Qf2+ $19 45. Qe3 Qxe3+ 46. Kxe3 Kd7) 45. Qxa6 $11 {[%emt 0:00:17][%cal Ra6c8]} Qd2+ {[%emt 0:01:08]} 46. Ke5 {[%emt 0:00:44]} Qh2+ {[%emt 0:00:46]} 47. Kd4 {[%emt 0:00:22][%cal Ra6c8]} Qd2+ {[%emt 0:03:07]} 48. Ke5 {[%emt 0:00:09]} Qh2+ {[%emt 0:00:28]} 49. Kd4 {[%emt 0:00:14][%cal Ra6c8]} Qc7 {[%emt 0:00:23] Inhibits Qc8+.} 50. Kd3 {[%emt 0:04:26]} Qd7+ {[%emt 0:00:56]} 51. Ke3 $2 {[%emt 0:00:28]} ({White must play} 51. Kc4 $11) 51... Qd2+ {[%emt 0:00:40]} (51... h5 $1 $17 52. Qc4 h4) 52. Kf3 $15 {[%emt 0:00:12]} Qd7 {[%emt 0:00:27] Black is more active.} (52... c2 $1 $15 53. Qc8+ Qd8 54. Qc6+ Kf8) 53. Ke3 $19 {[%emt 0:02:44] [#] Threatens to win with Qa8+.} h5 $1 {[%emt 0:00:32]} ({And not} 53... Qd2+ 54. Kf3 $15) 54. a5 $2 {[%emt 0:01:29]} (54. Qc4 $17) 54... Qd2+ {[%emt 0:00:28]} 55. Kf3 {[%emt 0:00:22] [#]} c2 $1 {[%emt 0:00:21]} ({Inferior is} 55... Qd1+ 56. Kf4 $19) 56. Qc8+ {[%emt 0:00:59]} Qd8 {[%emt 0:00:04]} 57. Qc6+ {[%emt 0:01:04]} Kf8 {[%emt 0:00:02]} 58. Qxc2 {[%emt 0:00:48]} Qxf6+ {[%emt 0:00:04]} 59. Ke2 {[%emt 0:00:52]} Qa6+ {[%emt 0:00:05]} 60. Qd3 {[%emt 0:02:01]} Qxa5 {[%emt 0:00:05] aiming for ...Qc5.} 61. Kf3 {[%emt 0:01:12]} Qc5 {[%emt 0:00:24] Inhibits Qd4. ( -> ...Qc3)} 62. Kf4 {[%emt 0:00:52]} g5+ {[%emt 0:01:49]} 63. Kf3 {[%emt 0:00:19]} Qc3 {[%emt 0:00:19] Weighted Error Value: White=0.88/Black=0.46} 0-1

[Event "Begum Laila Alam 12th Women 2022"]
[Site "Dhaka"]
[Date "2022.05.10"]
[Round "6.4"]
[White "Nusrat Jahan, Alo"]
[Black "Kazi Zarin, Tasnim"]
[Result "1-0"]
[ECO "C54"]
[WhiteElo "1652"]
[BlackElo "1899"]
[Annotator "NA RC COMBH"]
[PlyCount "65"]
[EventDate "2022.05.05"]
[EventType "swiss"]
[EventCountry "BAN"]
[SourceTitle "playchess.com"]
[Source "ChessBase"]
[SourceQuality "1"]
[TimeControl "5400+30"]

{[%evp 23,65,10,12,32767,0,0,0,0,26,32767,32767,0,19,9,10,16,39,35,117,32767,32767,32767,32767,32767,118,88,116,99,32767,32767,429,463,32767,1040,1980,1691,1398,1439,1556,32767,1536,877,5373,6177]} 1. e4 {[%emt 0:00:05]} e5 {[%emt 0:00:11]} 2. Nf3 {[%emt 0:01:09]} Nc6 {[%emt 0:00:06]} 3. Bc4 {[%emt 0:00:05]} Bc5 {[%emt 0:00:17]} 4. c3 {[%emt 0:00:17]} Nf6 {[%emt 0:00:07]} 5. d4 {[%emt 0:00:05]} exd4 {[%emt 0:00:05]} 6. e5 {[%emt 0:00:04]} d5 {[%emt 0:00:08]} 7. Bb5 {[%emt 0:00:05]} Ne4 {[%emt 0:00:07]} 8. cxd4 {[%emt 0:00:05]} Bb4+ {[%emt 0:00:05]} 9. Bd2 {[%emt 0:00:09]} Nxd2 {[%emt 0:00:21]} 10. Nbxd2 {[%emt 0:00:22]} Bd7 {[%emt 0:00:50]} 11. Bxc6 {[%emt 0:02:28]} Bxc6 {[%emt 0:01:37]} 12. O-O {[%emt 0:01:45]} O-O {[%emt 0:00:31]} 13. a3 {[%emt 0:02:04]} Be7 {[%emt 0:00:40]} 14. Re1 {[%emt 0:02:20]} Bd7 {[%emt 0:01:50]} 15. Qb3 {[%emt 0:03:32]} Bc6 {[%emt 0:02:48]} 16. Re3 {[%emt 0:05:08]} Qd7 {[%emt 0:10:54]} 17. Rae1 {[%emt 0:16:33]} Qe6 {[%emt 0:01:49]} 18. Nf1 {[%emt 0:02:39]} Rac8 {[%emt 0:05:24]} 19. Ng3 {[%emt 0:02:31]} Rfe8 {[%emt 0:08:01]} 20. Ne2 {[%emt 0:03:57]} Qd7 {[%emt 0:08:59]} (20... Qf5 $11 {keeps the balance.}) 21. Nf4 {[%emt 0:07:50]} Bf8 {[%emt 0:07:00]} 22. e6 {[%emt 0:01:57]} fxe6 {[%emt 0:00:43]} 23. Nxe6 {[%emt 0:00:14]} Qd6 {[%emt 0:16:09]} 24. Nfg5 {[%emt 0:12:21]} h6 {[%emt 0:08:48] [#]} 25. Nh3 $1 {[%emt 0:11:37]} b6 {[%emt 0:07:23]} 26. Nhf4 {[%emt 0:05:52]} Be7 $2 {[%emt 0:02:10]} (26... Bd7 $16 {is tougher.}) 27. Qd3 {[%emt 0:05:39]} Bd7 {[%emt 0:05:47]} 28. Qg6 {[%emt 0:00:23]} Bf6 {[%emt 0:02:34]} 29. Nh5 $1 {[%emt 0:00:54]} Rxe6 {[%emt 0:02:12]} 30. Rxe6 {[%emt 0:00:17] Remove Defender} Bxe6 {[%emt 0:00:01]} 31. Nxf6+ {[%emt 0:00:27]} Kf8 {[%emt 0:02:11]} 32. Nh5 {[%emt 0:04:10]} Ke7 $18 {[%emt 0:02:24]} 33. Nxg7 {[%emt 0:00:15]} 1-0